[Event "*** Titled Tuesday Blitz"]
[Site "Chess.com"]
[Date "2020.11.10"]
[Round "3"]
[White "MasterMK73"]
[Black "chenxiaoyuer"]
[Result "0-1"]
[WhiteElo "2247"]
[BlackElo "2506"]
[TimeControl "180+1"]
[EndTime "10:32:08 PST"]
[Termination "chenxiaoyuer won on time"]

1. e4 {[%clk 0:03:00.9]} 1... c5 {[%clk 0:02:59.3]} 2. Nf3 {[%clk 0:02:58.5]}
2... d6 {[%clk 0:02:59.5]} 3. Bb5+ {[%clk 0:02:55.6]} 3... Nd7 {[%clk
0:02:57.9]} 4. O-O {[%clk 0:02:53.8]} 4... Nf6 {[%clk 0:02:57.1]} 5. Re1 {[%clk
0:02:53]} 5... a6 {[%clk 0:02:55.8]} 6. Bf1 {[%clk 0:02:52.2]} 6... b6 {[%clk
0:02:46.7]} 7. c3 {[%clk 0:02:43.3]} 7... Bb7 {[%clk 0:02:44.6]} 8. d3 {[%clk
0:02:40.9]} 8... g6 {[%clk 0:02:24.8]} 9. Nbd2 {[%clk 0:02:35.5]} 9... Bg7
{[%clk 0:02:21.6]} 10. d4 {[%clk 0:02:35.5]} 10... O-O {[%clk 0:02:17.5]} 11. e5
{[%clk 0:02:31.9]} 11... Nd5 {[%clk 0:01:55.2]} 12. a4 {[%clk 0:02:10.4]} 12...
cxd4 {[%clk 0:01:51]} 13. cxd4 {[%clk 0:02:09.4]} 13... Rc8 {[%clk 0:01:49.5]}
14. Nc4 {[%clk 0:02:07.3]} 14... dxe5 {[%clk 0:01:46.3]} 15. dxe5 {[%clk
0:02:06.8]} 15... Nc5 {[%clk 0:01:42.3]} 16. Nd4 {[%clk 0:02:02.7]} 16... Nb4
{[%clk 0:01:31]} 17. Be3 {[%clk 0:01:53.5]} 17... Qc7 {[%clk 0:01:08.3]} 18. Qd2
{[%clk 0:01:43.4]} 18... Nd5 {[%clk 0:00:56.9]} 19. b4 {[%clk 0:01:29.6]} 19...
Ne4 {[%clk 0:00:49.9]} 20. Qb2 {[%clk 0:01:13.8]} 20... Bxe5 {[%clk 0:00:46.5]}
21. Nxe5 {[%clk 0:01:09.3]} 21... Qxe5 {[%clk 0:00:47.4]} 22. Bh6 {[%clk
0:01:02.3]} 22... Rfd8 {[%clk 0:00:41.3]} 23. f3 {[%clk 0:00:56]} 23... Ndc3
{[%clk 0:00:26.2]} 24. Nb3 {[%clk 0:00:36.5]} 24... Qh5 {[%clk 0:00:21.1]} 25.
Bf4 {[%clk 0:00:29.5]} 25... Nd6 {[%clk 0:00:13.4]} 26. Rac1 {[%clk 0:00:27]}
26... Nxa4 {[%clk 0:00:12.1]} 27. Qa1 {[%clk 0:00:25]} 27... b5 {[%clk
0:00:11.5]} 28. Rxe7 {[%clk 0:00:21.6]} 28... Qd5 {[%clk 0:00:10.1]} 29. Bxd6
{[%clk 0:00:19.8]} 29... Rxc1 {[%clk 0:00:06.9]} 30. Qxc1 {[%clk 0:00:15.8]}
30... Rxd6 {[%clk 0:00:06.7]} 31. Nc5 {[%clk 0:00:14.5]} 31... Nxc5 {[%clk
0:00:05.9]} 32. bxc5 {[%clk 0:00:14.1]} 32... Re6 {[%clk 0:00:06.3]} 33. Rxe6
{[%clk 0:00:13.9]} 33... Qxe6 {[%clk 0:00:06.5]} 34. Qc3 {[%clk 0:00:12.7]}
34... Bc6 {[%clk 0:00:06.7]} 35. Qa5 {[%clk 0:00:11.7]} 35... Qe3+ {[%clk
0:00:06.1]} 36. Kh1 {[%clk 0:00:11]} 36... Qf2 {[%clk 0:00:06]} 37. h3 {[%clk
0:00:09]} 37... Qxf1+ {[%clk 0:00:05.9]} 38. Kh2 {[%clk 0:00:09.6]} 38... Qf2
{[%clk 0:00:06.1]} 39. Qd8+ {[%clk 0:00:09]} 39... Kg7 {[%clk 0:00:06.3]} 40.
Qd6 {[%clk 0:00:08.7]} 40... Bxf3 {[%clk 0:00:06.1]} 41. Qe5+ {[%clk 0:00:08.2]}
41... f6 {[%clk 0:00:05.9]} 42. Qe7+ {[%clk 0:00:07.7]} 42... Kh6 {[%clk
0:00:05.9]} 43. Qf8+ {[%clk 0:00:03]} 43... Kh5 {[%clk 0:00:06]} 0-1

[Event "*** Titled Tuesday Blitz"]
[Site "Chess.com"]
[Date "2020.11.10"]
[Round "3"]
[White "temus_galaktionov"]
[Black "Zhuu96"]
[Result "0-1"]
[WhiteElo "2644"]
[BlackElo "2891"]
[TimeControl "180+1"]
[EndTime "10:32:09 PST"]
[Termination "Zhuu96 won by resignation"]

1. d4 {[%clk 0:03:00.9]} 1... Nf6 {[%clk 0:02:53.8]} 2. Nf3 {[%clk 0:02:58.5]}
2... d5 {[%clk 0:02:51.9]} 3. c4 {[%clk 0:02:58.2]} 3... c6 {[%clk 0:02:51]} 4.
Qb3 {[%clk 0:02:57.6]} 4... e6 {[%clk 0:02:50.4]} 5. Nc3 {[%clk 0:02:57.4]} 5...
dxc4 {[%clk 0:02:50.4]} 6. Qxc4 {[%clk 0:02:58.3]} 6... b5 {[%clk 0:02:50.8]} 7.
Qd3 {[%clk 0:02:58.4]} 7... Nbd7 {[%clk 0:02:48.9]} 8. e4 {[%clk 0:02:58.2]}
8... a6 {[%clk 0:02:48.1]} 9. Bg5 {[%clk 0:02:57.4]} 9... Qa5 {[%clk 0:02:44.1]}
10. Bd2 {[%clk 0:02:39.2]} 10... b4 {[%clk 0:02:43.8]} 11. Ne2 {[%clk 0:02:33]}
11... c5 {[%clk 0:02:43.9]} 12. d5 {[%clk 0:02:18]} 12... Bb7 {[%clk 0:02:38.1]}
13. Nf4 {[%clk 0:02:11.4]} 13... exd5 {[%clk 0:02:36.9]} 14. exd5 {[%clk
0:02:09.3]} 14... Bd6 {[%clk 0:02:36.6]} 15. Be2 {[%clk 0:01:25.8]} 15... O-O
{[%clk 0:02:34.1]} 16. O-O {[%clk 0:01:25.4]} 16... Rfe8 {[%clk 0:02:27.5]} 17.
Rfe1 {[%clk 0:01:21]} 17... c4 {[%clk 0:02:06.7]} 18. Qxc4 {[%clk 0:01:17.4]}
18... Re4 {[%clk 0:02:05.3]} 19. Qc2 {[%clk 0:00:35.5]} 19... Rc8 {[%clk
0:01:52.4]} 20. Qd1 {[%clk 0:00:35.2]} 20... Bxf4 {[%clk 0:01:50.7]} 21. Bd3
{[%clk 0:00:35.7]} 21... Rxe1+ {[%clk 0:01:50]} 22. Bxe1 {[%clk 0:00:36.6]}
22... Qxd5 {[%clk 0:01:39.2]} 23. Bxb4 {[%clk 0:00:35.9]} 23... Ne5 {[%clk
0:01:38.6]} 24. Be2 {[%clk 0:00:33.4]} 24... Qxd1+ {[%clk 0:01:36.4]} 25. Rxd1
{[%clk 0:00:34.3]} 25... Nxf3+ {[%clk 0:01:36]} 26. Bxf3 {[%clk 0:00:35.2]}
26... Bxf3 {[%clk 0:01:34.4]} 27. gxf3 {[%clk 0:00:36.1]} 27... Rc1 {[%clk
0:01:34.1]} 28. Rxc1 {[%clk 0:00:33.2]} 28... Bxc1 {[%clk 0:01:34.3]} 29. b3
{[%clk 0:00:34.1]} 29... Nd5 {[%clk 0:01:34]} 30. Ba5 {[%clk 0:00:33]} 30... f6
{[%clk 0:01:30.3]} 31. Kf1 {[%clk 0:00:32.4]} 31... Kf7 {[%clk 0:01:30.5]} 32.
Ke2 {[%clk 0:00:32.4]} 32... Ke6 {[%clk 0:01:31]} 33. Kd3 {[%clk 0:00:32.4]}
33... g5 {[%clk 0:01:29.8]} 34. Kc4 {[%clk 0:00:29.3]} 34... Kd6 {[%clk
0:01:29.6]} 35. a4 {[%clk 0:00:25.5]} 35... Bf4 {[%clk 0:01:29.4]} 36. h3 {[%clk
0:00:24.4]} 36... Be5 {[%clk 0:01:29.7]} 37. b4 {[%clk 0:00:20.2]} 37... Nf4
{[%clk 0:01:28.4]} 38. b5 {[%clk 0:00:20]} 38... axb5+ {[%clk 0:01:28.7]} 39.
Kxb5 {[%clk 0:00:20.9]} 39... Bd4 {[%clk 0:01:26.4]} 40. Bb4+ {[%clk 0:00:20.2]}
40... Kd5 {[%clk 0:01:25.9]} 41. a5 {[%clk 0:00:19.6]} 41... Nxh3 {[%clk
0:01:25.7]} 42. a6 {[%clk 0:00:20.1]} 42... Nxf2 {[%clk 0:01:25.2]} 43. Ba5
{[%clk 0:00:20.1]} 43... Nd1 {[%clk 0:01:04.4]} 44. Bb6 {[%clk 0:00:20]} 44...
Nc3+ {[%clk 0:01:04.3]} 45. Ka5 {[%clk 0:00:19.8]} 45... Bxb6+ {[%clk
0:00:48.3]} 46. Kxb6 {[%clk 0:00:20.7]} 46... Kd6 {[%clk 0:00:46.8]} 47. a7
{[%clk 0:00:09.5]} 47... Nd5+ {[%clk 0:00:46.8]} 48. Kb5 {[%clk 0:00:09.5]}
48... Nc7+ {[%clk 0:00:47.4]} 49. Kc4 {[%clk 0:00:09.9]} 49... h5 {[%clk
0:00:47.6]} 50. Kd4 {[%clk 0:00:10]} 50... h4 {[%clk 0:00:47.7]} 51. Ke4 {[%clk
0:00:10.9]} 51... h3 {[%clk 0:00:46.7]} 52. f4 {[%clk 0:00:10.6]} 52... h2
{[%clk 0:00:46.5]} 53. fxg5 {[%clk 0:00:11.5]} 53... h1=Q+ {[%clk 0:00:46.7]}
54. Kf5 {[%clk 0:00:12.4]} 54... Qf3+ {[%clk 0:00:44.6]} 55. Kg6 {[%clk
0:00:11.9]} 55... Na8 {[%clk 0:00:44.4]} 56. gxf6 {[%clk 0:00:11.7]} 56... Ke6
{[%clk 0:00:44.7]} 57. f7 {[%clk 0:00:12.3]} 57... Qg4+ {[%clk 0:00:44.9]} 58.
Kh6 {[%clk 0:00:11.1]} 58... Kxf7 {[%clk 0:00:45.1]} 0-1

[Event "*** Titled Tuesday Blitz"]
[Site "Chess.com"]
[Date "2020.11.10"]
[Round "3"]
[White "Chopper1905"]
[Black "Margency"]
[Result "1-0"]
[WhiteElo "2935"]
[BlackElo "2690"]
[TimeControl "180+1"]
[EndTime "10:32:10 PST"]
[Termination "Chopper1905 won by checkmate"]

1. Nf3 {[%clk 0:03:00.9]} 1... d5 {[%clk 0:02:55.9]} 2. g4 {[%clk 0:02:57.4]}
2... Bxg4 {[%clk 0:02:53.8]} 3. Bg2 {[%clk 0:02:56.2]} 3... c6 {[%clk
0:02:53.6]} 4. b3 {[%clk 0:02:46.7]} 4... Nf6 {[%clk 0:02:47]} 5. Bb2 {[%clk
0:02:42.9]} 5... e6 {[%clk 0:02:45.6]} 6. d3 {[%clk 0:02:37.1]} 6... Nbd7 {[%clk
0:02:43.2]} 7. Nbd2 {[%clk 0:02:33]} 7... Bd6 {[%clk 0:02:39.3]} 8. e3 {[%clk
0:02:27.1]} 8... O-O {[%clk 0:02:38.2]} 9. Qe2 {[%clk 0:02:26.1]} 9... a5 {[%clk
0:02:37.6]} 10. a3 {[%clk 0:02:22.9]} 10... Qc7 {[%clk 0:02:33.8]} 11. h3 {[%clk
0:02:22.2]} 11... Bh5 {[%clk 0:02:33.8]} 12. O-O {[%clk 0:02:22.4]} 12... Rfe8
{[%clk 0:02:20]} 13. Kh1 {[%clk 0:02:21.1]} 13... e5 {[%clk 0:02:14.8]} 14. e4
{[%clk 0:02:21]} 14... Nf8 {[%clk 0:02:12.6]} 15. Qe3 {[%clk 0:02:07.8]} 15...
Ng6 {[%clk 0:02:06.4]} 16. Rg1 {[%clk 0:02:06.6]} 16... h6 {[%clk 0:01:50.9]}
17. Nh2 {[%clk 0:01:49.1]} 17... b5 {[%clk 0:01:40.4]} 18. Bf3 {[%clk
0:01:47.2]} 18... d4 {[%clk 0:01:30.8]} 19. Qe1 {[%clk 0:01:43.3]} 19... Bxf3+
{[%clk 0:01:25.1]} 20. Ndxf3 {[%clk 0:01:44.2]} 20... Nh5 {[%clk 0:01:19.6]} 21.
Bc1 {[%clk 0:01:38.3]} 21... a4 {[%clk 0:01:18.4]} 22. Ng4 {[%clk 0:01:25]}
22... Bf8 {[%clk 0:01:03.4]} 23. Qd1 {[%clk 0:00:41]} 23... c5 {[%clk
0:00:56.6]} 24. Nh4 {[%clk 0:00:36]} 24... Nhf4 {[%clk 0:00:43.7]} 25. Bxf4
{[%clk 0:00:26.8]} 25... exf4 {[%clk 0:00:37]} 26. bxa4 {[%clk 0:00:26.8]} 26...
Rxa4 {[%clk 0:00:34.7]} 27. Nf5 {[%clk 0:00:20.4]} 27... Kh7 {[%clk 0:00:25.3]}
28. h4 {[%clk 0:00:16.1]} 28... Ne5 {[%clk 0:00:23.6]} 29. Nfxh6 {[%clk
0:00:11.8]} 29... Ra6 {[%clk 0:00:15.7]} 30. Nxe5 {[%clk 0:00:10.9]} 30... Rxe5
{[%clk 0:00:15]} 31. Ng4 {[%clk 0:00:07.1]} 31... Ree6 {[%clk 0:00:12.1]} 32.
Qf3 {[%clk 0:00:07.2]} 32... c4 {[%clk 0:00:08.7]} 33. Rab1 {[%clk 0:00:06.8]}
33... cxd3 {[%clk 0:00:07.6]} 34. cxd3 {[%clk 0:00:07.7]} 34... Rxa3 {[%clk
0:00:08]} 35. Rxb5 {[%clk 0:00:07.9]} 35... g6 {[%clk 0:00:08]} 36. h5 {[%clk
0:00:05.8]} 36... Qc6 {[%clk 0:00:07.6]} 37. hxg6+ {[%clk 0:00:05.8]} 37... fxg6
{[%clk 0:00:08]} 38. Rg5 {[%clk 0:00:05.8]} 38... Qc2 {[%clk 0:00:06.2]} 39.
Qh3+ {[%clk 0:00:05.6]} 39... Kg8 {[%clk 0:00:06]} 40. Nh6+ {[%clk 0:00:05.3]}
40... Kg7 {[%clk 0:00:06.2]} 41. Qxe6 {[%clk 0:00:05.2]} 41... Kxh6 {[%clk
0:00:01.5]} 42. Qxg6# {[%clk 0:00:05.3]} 1-0

[Event "*** Titled Tuesday Blitz"]
[Site "Chess.com"]
[Date "2020.11.10"]
[Round "3"]
[White "IMDT02"]
[Black "indfraeng"]
[Result "0-1"]
[WhiteElo "2590"]
[BlackElo "2390"]
[TimeControl "180+1"]
[EndTime "10:32:11 PST"]
[Termination "indfraeng won by resignation"]

1. Nf3 {[%clk 0:03:00.6]} 1... Nf6 {[%clk 0:03:00]} 2. b3 {[%clk 0:03:01.5]}
2... c6 {[%clk 0:02:54.5]} 3. Bb2 {[%clk 0:03:01.7]} 3... d5 {[%clk 0:02:54.7]}
4. e3 {[%clk 0:03:01.3]} 4... Nbd7 {[%clk 0:02:54.3]} 5. d4 {[%clk 0:03:01.7]}
5... g6 {[%clk 0:02:50.6]} 6. Nbd2 {[%clk 0:03:01.5]} 6... Bg7 {[%clk
0:02:50.9]} 7. Bd3 {[%clk 0:03:02]} 7... O-O {[%clk 0:02:51.3]} 8. O-O {[%clk
0:03:02.5]} 8... Re8 {[%clk 0:02:48.4]} 9. Ne5 {[%clk 0:03:00]} 9... Nxe5 {[%clk
0:02:39.4]} 10. dxe5 {[%clk 0:03:00.9]} 10... Ng4 {[%clk 0:02:39.8]} 11. Nf3
{[%clk 0:02:26.7]} 11... Qc7 {[%clk 0:02:37]} 12. c4 {[%clk 0:02:26.3]} 12...
Nxe5 {[%clk 0:02:32.9]} 13. Nxe5 {[%clk 0:02:22.5]} 13... Bxe5 {[%clk
0:02:33.8]} 14. Bxe5 {[%clk 0:02:20.5]} 14... Qxe5 {[%clk 0:02:34.7]} 15. cxd5
{[%clk 0:02:21.3]} 15... cxd5 {[%clk 0:02:29.3]} 16. Rc1 {[%clk 0:02:21.4]}
16... Bf5 {[%clk 0:02:28.3]} 17. Bxf5 {[%clk 0:02:19.7]} 17... Qxf5 {[%clk
0:02:28.8]} 18. Rc7 {[%clk 0:02:19.6]} 18... b6 {[%clk 0:02:07.3]} 19. Qd4
{[%clk 0:02:11.6]} 19... Qe6 {[%clk 0:01:46.4]} 20. Rfc1 {[%clk 0:02:00.1]}
20... Rac8 {[%clk 0:01:36.5]} 21. h3 {[%clk 0:01:58.7]} 21... Rxc7 {[%clk
0:01:17.7]} 22. Rxc7 {[%clk 0:01:59.6]} 22... Rc8 {[%clk 0:01:08.1]} 23. Rxa7
{[%clk 0:01:42.4]} 23... Rc1+ {[%clk 0:00:54.3]} 24. Kh2 {[%clk 0:01:41.7]}
24... Qd6+ {[%clk 0:00:55.2]} 25. f4 {[%clk 0:01:36.1]} 25... Rc8 {[%clk
0:00:44.4]} 26. Rb7 {[%clk 0:01:32.7]} 26... Rc5 {[%clk 0:00:42.7]} 27. b4
{[%clk 0:01:10.7]} 27... Rc4 {[%clk 0:00:29.7]} 28. Qxb6 {[%clk 0:01:05.8]}
28... Qxb6 {[%clk 0:00:29.8]} 29. Rxb6 {[%clk 0:01:06.7]} 29... Rc3 {[%clk
0:00:29.8]} 30. a4 {[%clk 0:01:06.9]} 30... Rxe3 {[%clk 0:00:29.5]} 31. a5
{[%clk 0:01:07.2]} 31... d4 {[%clk 0:00:28.4]} 32. a6 {[%clk 0:01:03.3]} 32...
Ra3 {[%clk 0:00:28]} 33. b5 {[%clk 0:01:01.5]} 33... Kg7 {[%clk 0:00:23.7]} 34.
Rb7 {[%clk 0:00:57.4]} 34... Ra5 {[%clk 0:00:19.5]} 35. a7 {[%clk 0:00:53.3]}
35... d3 {[%clk 0:00:18.4]} 36. b6 {[%clk 0:00:53.3]} 36... Rd5 {[%clk
0:00:18.2]} 37. Rxe7 {[%clk 0:00:50.2]} 37... d2 {[%clk 0:00:18]} 38. a8=Q
{[%clk 0:00:45.3]} 38... d1=Q {[%clk 0:00:17.4]} 39. Re8 {[%clk 0:00:22.4]}
39... Qd2 {[%clk 0:00:08.2]} 40. Qb8 {[%clk 0:00:20]} 40... Rd6 {[%clk
0:00:07.2]} 41. Rg8+ {[%clk 0:00:18.4]} 41... Kf6 {[%clk 0:00:06.6]} 42. Qc7
{[%clk 0:00:04.5]} 42... Qxf4+ {[%clk 0:00:04.8]} 0-1

[Event "*** Titled Tuesday Blitz"]
[Site "Chess.com"]
[Date "2020.11.10"]
[Round "3"]
[White "scarabee43"]
[Black "Harsha_Bharathakoti"]
[Result "1-0"]
[WhiteElo "2574"]
[BlackElo "2807"]
[TimeControl "180+1"]
[EndTime "10:32:12 PST"]
[Termination "scarabee43 won by resignation"]

1. Nf3 {[%clk 0:03:00.9]} 1... g6 {[%clk 0:02:54.4]} 2. c4 {[%clk 0:03:00.4]}
2... Bg7 {[%clk 0:02:54.3]} 3. d4 {[%clk 0:03:00.7]} 3... d6 {[%clk 0:02:52.1]}
4. Nc3 {[%clk 0:03:00.8]} 4... Nd7 {[%clk 0:02:50.3]} 5. e4 {[%clk 0:02:56.3]}
5... e5 {[%clk 0:02:50.3]} 6. d5 {[%clk 0:02:56]} 6... Ne7 {[%clk 0:02:45.3]} 7.
Be2 {[%clk 0:02:51.5]} 7... O-O {[%clk 0:02:43.6]} 8. O-O {[%clk 0:02:51.9]}
8... h6 {[%clk 0:02:40.6]} 9. a3 {[%clk 0:02:48.4]} 9... f5 {[%clk 0:02:40.3]}
10. b4 {[%clk 0:02:46.5]} 10... Nf6 {[%clk 0:02:36.7]} 11. Nd2 {[%clk 0:02:45]}
11... fxe4 {[%clk 0:02:35.3]} 12. Ndxe4 {[%clk 0:02:44.1]} 12... Nf5 {[%clk
0:02:36.2]} 13. Re1 {[%clk 0:02:27.2]} 13... Nd4 {[%clk 0:02:29.8]} 14. Be3
{[%clk 0:02:21.1]} 14... Bf5 {[%clk 0:02:13]} 15. Nxf6+ {[%clk 0:01:55.9]} 15...
Qxf6 {[%clk 0:02:10.8]} 16. Bd3 {[%clk 0:01:56.1]} 16... Rae8 {[%clk 0:01:51.5]}
17. Ne4 {[%clk 0:01:49.9]} 17... Qh4 {[%clk 0:01:49.5]} 18. f3 {[%clk
0:01:35.4]} 18... b6 {[%clk 0:01:39.6]} 19. Ra2 {[%clk 0:01:25.1]} 19... Qd8
{[%clk 0:00:57]} 20. Ng3 {[%clk 0:01:11.3]} 20... Bxd3 {[%clk 0:00:44.8]} 21.
Qxd3 {[%clk 0:01:09.9]} 21... Nf5 {[%clk 0:00:45.7]} 22. Ne4 {[%clk 0:01:06.6]}
22... Qd7 {[%clk 0:00:41.5]} 23. c5 {[%clk 0:00:53.8]} 23... dxc5 {[%clk
0:00:34.8]} 24. bxc5 {[%clk 0:00:53.3]} 24... Nd4 {[%clk 0:00:33.2]} 25. Bxd4
{[%clk 0:00:26.1]} 25... exd4 {[%clk 0:00:34.1]} 26. Qc4 {[%clk 0:00:22.2]}
26... Kh7 {[%clk 0:00:34.2]} 27. Rae2 {[%clk 0:00:19.3]} 27... Rd8 {[%clk
0:00:30.4]} 28. d6 {[%clk 0:00:17.5]} 28... bxc5 {[%clk 0:00:29.8]} 29. Nxc5
{[%clk 0:00:16.6]} 29... Qxd6 {[%clk 0:00:26.7]} 30. Ne6 {[%clk 0:00:17.3]}
30... d3 {[%clk 0:00:27.6]} 31. Nxf8+ {[%clk 0:00:17.1]} 31... Rxf8 {[%clk
0:00:26.7]} 32. Re6 {[%clk 0:00:17.1]} 32... d2 {[%clk 0:00:06.2]} 33. Rd1
{[%clk 0:00:14.5]} 33... Qd4+ {[%clk 0:00:02.8]} 34. Qxd4 {[%clk 0:00:14.6]}
34... Bxd4+ {[%clk 0:00:03.7]} 35. Kf1 {[%clk 0:00:15.3]} 35... Bc3 {[%clk
0:00:03.3]} 36. Re3 {[%clk 0:00:14.6]} 36... Ba5 {[%clk 0:00:02.8]} 37. Re7+
{[%clk 0:00:14.6]} 37... Kg8 {[%clk 0:00:03.4]} 38. Ke2 {[%clk 0:00:11.3]} 38...
Rb8 {[%clk 0:00:02.4]} 39. Re5 {[%clk 0:00:10.5]} 39... Bc3 {[%clk 0:00:01.9]}
40. Rc5 {[%clk 0:00:10.7]} 40... Rb3 {[%clk 0:00:02.6]} 41. Rxc7 {[%clk
0:00:11]} 41... Rxa3 {[%clk 0:00:03.2]} 42. Rb1 {[%clk 0:00:10.5]} 42... Bg7
{[%clk 0:00:01.2]} 43. Rb8+ {[%clk 0:00:10.4]} 43... Bf8 {[%clk 0:00:02.1]} 44.
Rcc8 {[%clk 0:00:10.3]} 44... Rd3 {[%clk 0:00:02.8]} 45. Rxf8+ {[%clk
0:00:09.9]} 45... Kg7 {[%clk 0:00:03.7]} 46. Kd1 {[%clk 0:00:10]} 1-0

[Event "*** Titled Tuesday Blitz"]
[Site "Chess.com"]
[Date "2020.11.10"]
[Round "3"]
[White "ChristopherYoo"]
[Black "smartinusa"]
[Result "0-1"]
[WhiteElo "2847"]
[BlackElo "2637"]
[TimeControl "180+1"]
[EndTime "10:32:14 PST"]
[Termination "smartinusa won by resignation"]

1. Nf3 {[%clk 0:02:17.7]} 1... c5 {[%clk 0:02:57.7]} 2. c4 {[%clk 0:02:17.1]}
2... Nc6 {[%clk 0:02:57.2]} 3. Nc3 {[%clk 0:02:17.3]} 3... g6 {[%clk 0:02:51.9]}
4. g3 {[%clk 0:02:12.2]} 4... Bg7 {[%clk 0:02:51.3]} 5. Bg2 {[%clk 0:02:12]}
5... d6 {[%clk 0:02:50]} 6. O-O {[%clk 0:02:11.7]} 6... e6 {[%clk 0:02:49.9]} 7.
Rb1 {[%clk 0:01:51.4]} 7... Nge7 {[%clk 0:02:49.9]} 8. a3 {[%clk 0:01:51.3]}
8... O-O {[%clk 0:02:49.9]} 9. b4 {[%clk 0:01:45.8]} 9... b6 {[%clk 0:02:50.1]}
10. Qb3 {[%clk 0:01:30.1]} 10... Bb7 {[%clk 0:02:44.3]} 11. d3 {[%clk
0:01:29.5]} 11... Nf5 {[%clk 0:02:41.3]} 12. e3 {[%clk 0:01:18.4]} 12... cxb4
{[%clk 0:02:40.4]} 13. axb4 {[%clk 0:01:18]} 13... a5 {[%clk 0:02:40.4]} 14.
bxa5 {[%clk 0:01:16.7]} 14... Nxa5 {[%clk 0:02:40.1]} 15. Qb4 {[%clk 0:01:11.7]}
15... Nc6 {[%clk 0:02:27.8]} 16. Qb3 {[%clk 0:01:03.6]} 16... Na5 {[%clk
0:02:27.3]} 17. Qc2 {[%clk 0:01:02.9]} 17... Rc8 {[%clk 0:02:26.2]} 18. Bd2
{[%clk 0:00:42.3]} 18... d5 {[%clk 0:02:19.2]} 19. cxd5 {[%clk 0:00:41.1]} 19...
exd5 {[%clk 0:02:20.1]} 20. d4 {[%clk 0:00:34.5]} 20... Nc4 {[%clk 0:02:19]} 21.
Qb3 {[%clk 0:00:31.5]} 21... Ba6 {[%clk 0:02:13.3]} 22. Rfc1 {[%clk 0:00:30.4]}
22... h5 {[%clk 0:02:10]} 23. Bf1 {[%clk 0:00:29.9]} 23... h4 {[%clk 0:01:47.1]}
24. Na2 {[%clk 0:00:29.3]} 24... hxg3 {[%clk 0:01:43.9]} 25. hxg3 {[%clk
0:00:30.2]} 25... Qf6 {[%clk 0:01:32.8]} 26. Nb4 {[%clk 0:00:29.3]} 26... Bb7
{[%clk 0:01:32.4]} 27. Kg2 {[%clk 0:00:21.9]} 27... g5 {[%clk 0:01:28.3]} 28.
Nd3 {[%clk 0:00:20.8]} 28... g4 {[%clk 0:01:27]} 29. Nfe5 {[%clk 0:00:20.7]}
29... Nxd2 {[%clk 0:01:25.6]} 30. Qd1 {[%clk 0:00:17.1]} 30... Nxb1 {[%clk
0:01:23.5]} 31. Rxb1 {[%clk 0:00:17.1]} 31... Qe6 {[%clk 0:01:18.3]} 32. Nf4
{[%clk 0:00:15.9]} 32... Qh6 {[%clk 0:00:55.5]} 33. Qxg4 {[%clk 0:00:13.5]}
33... Ne7 {[%clk 0:00:54.2]} 34. Bd3 {[%clk 0:00:10.2]} 34... f5 {[%clk
0:00:45.6]} 35. Qf3 {[%clk 0:00:10.4]} 35... Bxe5 {[%clk 0:00:31.7]} 36. dxe5
{[%clk 0:00:11.3]} 36... Ng6 {[%clk 0:00:28.1]} 37. Rh1 {[%clk 0:00:10.3]} 37...
Nxf4+ {[%clk 0:00:22.9]} 38. exf4 {[%clk 0:00:09.4]} 38... Qg7 {[%clk
0:00:22.7]} 39. Qh5 {[%clk 0:00:03.9]} 39... d4+ {[%clk 0:00:22.2]} 40. f3
{[%clk 0:00:04]} 40... Rc3 {[%clk 0:00:20.2]} 41. Bxf5 {[%clk 0:00:03.2]} 41...
Bxf3+ {[%clk 0:00:19.5]} 42. Qxf3 {[%clk 0:00:03.5]} 42... Rxf3 {[%clk 0:00:20]}
43. Be6+ {[%clk 0:00:03.9]} 43... Rf7 {[%clk 0:00:19.7]} 44. Kxf3 {[%clk
0:00:04.3]} 44... Qg6 {[%clk 0:00:17.7]} 45. f5 {[%clk 0:00:03.6]} 45... Qg5
{[%clk 0:00:14.8]} 46. Bxf7+ {[%clk 0:00:02]} 46... Kxf7 {[%clk 0:00:15.2]} 47.
Ke4 {[%clk 0:00:02.1]} 47... Qe3+ {[%clk 0:00:14.6]} 48. Kd5 {[%clk 0:00:02.4]}
48... Qf3+ {[%clk 0:00:15.2]} 0-1